fUST/lending_fUST_20240108
["ID","MTS","AMOUNT","RATE_DAILY","PERIOD"]
[310753683,1704708641691,-304.60503995,0.00035192,20]
[310753684,1704708641702,-279.82780709,0.00035192,4]
[310753685,1704708641712,-284.34174652,0.00035192,4]
[310753686,1704708641722,-155.9435093,0.00035192,2]
[310753687,1704708641732,-155.42000795,0.00035192,4]
[310753688,1704708641741,-156.464602,0.00035192,4]
[310753689,1704708641750,-155.15720642,0.00035192,4]
[310753690,1704708641760,-298.01973453,0.00035192,4]
[310753691,1704708641769,-156.06285771,0.00035192,4]
[310753692,1704708641778,-243.29415839,0.00035192,2]
[310753693,1704708641787,-176.40697611,0.00035192,4]
[310753694,1704708641797,-333.23644988,0.00035192,4]
[310753695,1704708641806,-268.14386702,0.00035192,4]
[310753696,1704708641815,-256.62366114,0.00035192,4]
[310753697,1704708641825,-177.2968012,0.00035194,4]
[310753698,1704708641834,-274.00573495,0.00035194,4]
[310753699,1704708641843,-287.70395354,0.00035194,4]
[310753700,1704708641852,-155.15032044,0.00035194,4]
[310753701,1704708641861,-731.90675141,0.00035194,4]
[310753702,1704708641870,-8681.10304597,0.00035194,4]
[310753703,1704708641879,-155.26316137,0.00035194,4]
[310753704,1704708641888,-155.82283665,0.00035194,4]
[310753705,1704708641897,-156.41283895,0.00035194,4]
[310753706,1704708641906,-2704.66005082,0.00035194,120]
[310753707,1704708641915,-395.66867048,0.00035194,4]
[310753708,1704708641924,-2870.14969708,0.00035194,4]
[310753709,1704708641934,-297.29337072,0.00035194,4]
[310753710,1704708641943,-180.09301096,0.00035194,4]
[310753711,1704708641952,-298.18220539,0.00035194,4]
[310753712,1704708641962,-165.57089835,0.00035194,4]
[310753713,1704708641970,-289.70984888,0.00035194,2]
[310753714,1704708641980,-156.08604098,0.00035194,4]
[310753715,1704708641989,-454.89181024,0.00035194,2]
[310753716,1704708641998,-155.63566622,0.00035194,4]
[310753717,1704708642007,-228.02594231,0.00035194,4]
[310753718,1704708642016,-193.28169905,0.00035194,4]
[310753719,1704708642024,-159.09780081,0.00035194,4]
[310753720,1704708642034,-151.0,0.00035194,2]
[310753721,1704708642047,-151.190752,0.00035194,2]
[310753722,1704708642056,-282.23116997,0.00035196,3]
[310753723,1704708642065,-339.85578053,0.00035296,4]
[310753724,1704708642075,-157.78984349,0.00035296,6]
[310753725,1704708642085,-4213.3530685,0.000353,7]
[310753726,1704708642094,-521.52489468,0.00035312,2]
[310753727,1704708642103,-546.73209235,0.00035314,2]
[310753728,1704708642112,-500.0,0.00035314,2]
[310753729,1704708642122,-155.11431733,0.00035396,4]
[310753730,1704708642131,-244.26930565,0.000354,30]
[310753731,1704708642141,-265.80201731,0.00035412,2]
[310753732,1704708642150,-245.38183383,0.00035412,4]
[310753733,1704708642159,-389.0,0.00035452,2]
[310753734,1704708642168,-610.66471854,0.00035484,14]
[310753735,1704708642177,-253.86226859,0.00035498,2]
[310753736,1704708642187,-174.76839857,0.00035498,4]
[310753737,1704708642196,-260.51619776,0.00035498,4]
[310753738,1704708642205,-2091.44093784,0.00035498,4]
[310753739,1704708642216,-2298.37111724,0.00035498,4]
[310753740,1704708642225,-3000.0,0.00035498,2]
[310753741,1704708642234,-525.41295756,0.00035498,4]
[310753742,1704708642244,-4707.01098899,0.00035498,4]
[310753743,1704708642253,-2483.08597309,0.00035498,2]
[310753744,1704708642264,-289.27996921,0.000355,3]
[310753745,1704708642274,-43143.95125793,0.000355,14]
[310753746,1704708642568,-326.06193089,0.00020208,3]
[310753747,1704708642582,-301.48806911,0.00020208,3]
[310753748,1704708642591,-4.7219311,0.000355,14]
[310753749,1704708642603,-2270.65747099,0.000355,14]
[310753750,1704708642612,-131.17458536,0.00035514,4]
[310753751,1704708642632,-917.18700966,0.00035514,4]
[310753752,1704708642641,-158.272084,0.00035548,2]
[310753753,1704708642651,-350.17237703,0.00035613,4]
[310753815,1704708646975,-0.00095811,0.0003112,2]
[310753816,1704708683657,200.0,0.000241,7]
[310753818,1704708978841,-154.82968734,0.00020892,2]
[310753819,1704708978865,-154.82968734,0.00020893,2]
[310753820,1704708978887,-154.82968734,0.00020893,2]
[310753821,1704708978908,-154.82968734,0.00020894,2]
[310753822,1704708978928,-166.53442625,0.00020895,2]
[310753823,1704708978948,-154.82968734,0.00020895,2]
[310753824,1704708978967,-154.82968734,0.00020895,2]
[310753825,1704708978987,-154.82968734,0.00020896,2]
[310753826,1704708979007,-1239.33609761,0.00020896,2]
[310753827,1704708979026,-154.82968734,0.00020897,2]
[310753828,1704708979045,-1575.24028985,0.00020897,2]
[310753829,1704708979067,-2507.77928787,0.00020897,2]
[310753830,1704708979086,-602.4723997,0.00020898,3]
[310753831,1704709049205,-154.82968734,0.00020887,2]
[310753832,1704709049229,-260.1996768,0.00020887,2]
[310753833,1704709049254,-285.61680411,0.00020888,2]
[310753834,1704709049278,-606.407981,0.00020889,2]
[310753835,1704709049303,-322.68982471,0.00020889,2]
[310753836,1704709049327,-13.79459641,0.00020898,3]
[310753837,1704709050703,93.46142963,0.00020886,2]
[310753839,1704709256984,537.31058011,0.0003,120]
[310753840,1704709304949,-154.82968734,0.00020983,2]
[310753841,1704709304969,-154.82968734,0.00020983,2]
[310753842,1704709304989,-117.34062532,0.00020983,2]
[310753843,1704709375240,-1736.56137293,0.00020977,2]
[310753844,1704709375261,-154.82968734,0.00020977,2]
[310753845,1704709375283,-1239.33609761,0.00020978,2]
[310753846,1704709375304,-190.9274286,0.00020979,2]
[310753847,1704709375326,-154.82968734,0.0002098,2]
[310753848,1704709375347,-13686.47755928,0.0002098,2]
[310753849,1704709375368,-3323.81401264,0.00020981,2]
[310753850,1704709375388,-132.22415426,0.00020984,2]
[310753851,1704709451780,-312.84491858,0.00020981,2]
[310753852,1704709451802,-301.18213313,0.00020981,2]
[310753853,1704709451823,-260.82241338,0.00020982,2]
[310753854,1704709451844,-403.15053491,0.00020982,2]
[310753855,1704709519341,-2807.77525151,0.00020975,2]
[310753856,1704709519362,-4786.33430996,0.00020976,2]
[310753857,1704709519383,-266.89043853,0.00020976,2]
[310753858,1704709584346,-553.89631554,0.00020871,2]
[310753859,1704709584368,-1194.60979452,0.00020871,2]
[310753860,1704709584388,-676.65162341,0.00020872,2]
[310753861,1704709584408,-525.41351867,0.00020873,2]
[310753862,1704709584433,-322.26268464,0.00020874,2]
[310753863,1704709584455,-157.15420997,0.00020875,2]
[310753864,1704709584476,-6346.01185325,0.00020973,2]
[310753865,1704709633096,-442.15482747,0.00020869,2]
[310753866,1704709716311,-7861.30134799,0.00020452,2]
[310753867,1704709716333,-343.85410073,0.00020453,2]
[310753868,1704709716355,-2992.99968739,0.00020453,2]
[310753869,1704709716377,-320.04135892,0.00020454,2]
[310753870,1704709716400,-1589.67,0.00020543,3]
[310753871,1704709716422,-261.65970793,0.00020552,2]
[310753872,1704709716444,-32815.47379704,0.00020552,2]
[310753873,1704709732439,175.203034,0.00019498,2]
[310753916,1704709832687,-1324.73,0.00020539,3]
[310753918,1704709832698,-1103.94,0.00020539,3]
[310753920,1704709832707,-919.95,0.00020539,3]
[310753922,1704709832716,-253.44967928,0.00020541,2]
[310753925,1704709832725,-65377.33563427,0.00020549,2]
[310753963,1704709839814,-3489.0323505,0.00020538,2]
[310753964,1704709839824,-36510.9676495,0.00020548,2]
[310753965,1704709839879,-300.08152915,0.00020548,2]
[310753966,1704709839889,-12950.59486261,0.00020549,2]
[310753967,1704709839899,-2549.74317422,0.00020551,2]
[310753968,1704709839909,-343.34998523,0.00020551,2]
[310753969,1704709839918,-1512.41586931,0.00020551,2]
[310753970,1704709839927,-261.55260087,0.00020551,2]
[310753971,1704709839937,-24900.0,0.00020554,2]
[310753972,1704709839946,-44.84994174,0.00020984,2]
[310753973,1704709839956,-520.7402291,0.00020999,2]
[310753974,1704709839965,-326.5926711,0.00021,2]
[310753975,1704709839974,-157.15420995,0.00021347,2]
[310753976,1704709839984,-172.97369267,0.00021804,2]
[310753978,1704709839993,-157.15420995,0.00021818,2]
[310753979,1704709840002,-1194.15929222,0.00021899,2]
[310753980,1704709840011,-286.7697947,0.00021899,2]
[310753981,1704709840021,-676.3587277,0.00021899,2]
[310753982,1704709840030,-2033.84368768,0.00021899,2]
[310753983,1704709840039,-2511.34591178,0.00021899,2]
[310753984,1704709840049,-322.14948125,0.000219,2]
[310753985,1704709840061,-525.20504904,0.000219,2]
[310753986,1704709840071,-2806.42480714,0.00021902,2]
[310753987,1704709840080,-4784.50329475,0.00021903,2]
[310753988,1704709840089,-301.06112899,0.00021915,2]
[310753989,1704709840099,-166.666666,0.00021918,2]
[310753990,1704709840108,-320.04135889,0.00022193,2]
[310753991,1704709840118,-766.63,0.00022235,3]
[310753992,1704709840128,-260.72265961,0.00022241,2]
[310753993,1704709840138,-437.41348382,0.00022241,2]
[310753994,1704709840147,-190.85270949,0.00022244,2]
[310753995,1704709840157,-1108.16408823,0.00022244,2]
[310753996,1704709840166,-1030.14329585,0.00022244,2]
[310753997,1704709840175,-1735.74473674,0.00022244,2]
[310753998,1704709840185,-289.97202126,0.00022244,2]
[310753999,1704709840195,-1377.93800816,0.00022244,2]
[310754000,1704709840205,-399.84612211,0.00022244,2]
[310754001,1704709840215,-255.21293154,0.00022244,2]
[310754002,1704709840225,-860.46618422,0.00022244,2]
[310754003,1704709840235,-853.21097928,0.00022244,2]
[310754004,1704709840245,-245.72874804,0.00022244,2]
[310754005,1704709840254,-156.03633286,0.00022245,2]
[310754006,1704709840263,-1236.79847015,0.00022245,2]
[310754007,1704709840272,-2634.26674675,0.00022245,2]
[310754008,1704709840282,-155.76568917,0.00022248,2]
[310754009,1704709840292,-236.34998195,0.00022248,2]
[310754010,1704709840303,-154.87609295,0.00022248,2]
[310754011,1704709840313,-320.04135889,0.00023933,2]
[310754012,1704709840322,-2292.16683006,0.00024,2]
[310754013,1704709840331,-297.909012,0.00024083,2]
[310754014,1704709840341,-395.44646687,0.00024083,2]
[310754015,1704709840351,-273.89819884,0.00024083,2]
[310754016,1704709840361,-287.58415033,0.00024092,2]
[310754017,1704709840370,-154.87609912,0.00024093,2]
[310754018,1704709840380,-155.27733166,0.00024094,2]
[310754019,1704709840389,-356.90542421,0.00024094,2]
[310754020,1704709840399,-155.78415184,0.00024094,2]
[310754021,1704709840408,-157.41108533,0.00024094,2]
[310754022,1704709840417,-166.53442625,0.00024094,2]
[310754023,1704709840427,-155.73726172,0.00024095,2]
[310754024,1704709840436,-2506.15300111,0.00024095,2]
[310754025,1704709840445,-280.63053991,0.00024095,2]
[310754026,1704709840454,-294.29289612,0.00024095,2]
[310754027,1704709840464,-18851.38599286,0.000241,2]
[310754028,1704709840473,-155.03805122,0.000241,2]
[310754029,1704709840482,-320.04135889,0.00025672,2]
[310754030,1704709840492,-578.50055777,0.00026684,5]
[310754031,1704709840501,-1797.21914814,0.00026955,2]
[310754032,1704709840510,-320.04135889,0.00027411,2]
[310754033,1704709840520,-2068.68169854,0.00027509,2]
[310754034,1704709840529,-241.96569398,0.00027509,2]
[310754035,1704709840539,-309.65937468,0.00027509,2]
[310754036,1704709840549,-1212.41206683,0.00027509,2]
[310754037,1704709840562,-1289.91196152,0.00027509,2]
[310754038,1704709840572,-158.49535403,0.00027509,2]
[310754039,1704709840582,-223.73536763,0.00027509,2]
[310754040,1704709840592,-275.23122514,0.00027509,2]
[310754041,1704709840602,-506.70797522,0.00027509,2]
[310754042,1704709840615,-163.7910347,0.00027509,2]
[310754043,1704709840625,-274.71413652,0.00027509,2]
[310754044,1704709840635,-469.27046295,0.00027509,2]
[310754045,1704709840645,-155.74216534,0.00027509,2]
[310754046,1704709840655,-11002.48716459,0.00027509,2]
[310754047,1704709840665,-613.7235784,0.0002751,2]
[310754048,1704709840675,-658.69478041,0.0002751,2]
[310754049,1704709840688,-250.58146688,0.0002751,2]
[310754050,1704709840697,-50000.0,0.00027511,2]
[310754051,1704709840707,-50000.0,0.00027511,2]
[310754052,1704709840716,-50000.0,0.00027511,2]
[310754053,1704709840725,-84309.61124059,0.00027511,2]
[310754054,1704709840735,-4715.48056202,0.00027511,2]
[310754055,1704709840744,-650.08095517,0.00027511,2]
[310754056,1704709840754,-312.24296639,0.00029941,2]
[310754057,1704709840763,-546.73209235,0.0003,2]
[310754058,1704709840772,-9431.63624703,0.00031,4]
[310754059,1704709840782,-449.02577329,0.00031014,4]
[310754060,1704709840791,-26068.95764678,0.00031106,2]
[310754061,1704709840804,-362.70570295,0.00031107,4]
[310754062,1704709840816,-460.59066408,0.00031107,4]
[310754063,1704709840825,-155.78549838,0.00031113,4]
[310754064,1704709840835,-192.00578741,0.00031113,4]
[310754065,1704709840844,-156.464602,0.00031115,4]
[310754066,1704709840854,-731.90675141,0.00031115,4]
[310754067,1704709840863,-165.14746576,0.00031115,4]
[310754069,1704709840873,-228.02594231,0.00031116,4]
[310754070,1704709840883,-155.11431733,0.00031116,4]
[310754071,1704709840892,-3000.0,0.00031116,2]
[310754072,1704709840902,-260.51619776,0.00031116,4]
[310754073,1704709840911,-156.08604098,0.00031116,4]
[310754076,1704709841055,-155.82283665,0.00031116,4]
[310754077,1704709841066,-525.41295756,0.00031116,4]
[310754078,1704709841076,-279.82780709,0.00031116,4]
[310754079,1704709841085,-165.57089835,0.00031116,4]
[310754080,1704709841096,-304.60503995,0.00031116,20]
[310754081,1704709841105,-243.29415839,0.00031116,2]
[310754082,1704709841114,-176.40697611,0.00031116,4]
[310754083,1704709841123,-2704.66005082,0.00031116,120]
[310754084,1704709841132,-155.63566622,0.00031116,4]
[310754085,1704709841142,-289.70984888,0.00031116,2]
[310754086,1704709841151,-8681.10304597,0.00031116,4]
[310754087,1704709841160,-284.34174652,0.00031116,4]
[310754088,1704709841170,-339.85578053,0.00031116,4]
[310754089,1704709841179,-155.42000795,0.00031116,4]
[310754090,1704709841188,-268.14386702,0.00031116,4]
[310754091,1704709841197,-256.62366114,0.00031116,4]
[310754092,1704709841206,-333.23644988,0.00031116,4]
[310754093,1704709841215,-156.06285771,0.00031116,4]
[310754094,1704709841225,-155.15720642,0.00031116,4]
[310754095,1704709841234,-4707.01098899,0.00031116,3]
[310754096,1704709841243,-155.15032044,0.00031116,4]
[310754097,1704709841252,-151.0,0.00031117,2]
[310754098,1704709841261,-151.190752,0.00031117,2]
[310754099,1704709841271,-18395.7602817,0.00031117,4]
[310754100,1704709841284,-1249.2957721,0.00031117,4]
[310754101,1704709841295,-155.26316137,0.00031117,4]
[310754102,1704709841306,-2091.44093784,0.00031117,4]
[310754103,1704709841316,-180.09301096,0.00031117,4]
[310754104,1704709841326,-3735.0637491,0.00031118,4]
[310754105,1704709841335,-508.6242048,0.00031118,4]
[310754106,1704709841345,-642.41474232,0.00031118,4]
[310754107,1704709841355,-6130.77269124,0.00031118,2]
[310754108,1704709841375,-1806.78105111,0.00031118,2]
[310754109,1704709841384,-2706.33955526,0.00031118,4]
[310754110,1704709841393,-154.86062544,0.00031118,4]
[310754111,1704709841403,-154.87609912,0.00031118,4]
[310754112,1704709841412,-156.41283895,0.00031118,4]
[310754113,1704709841422,-174.76839857,0.00031118,4]
[310754114,1704709841432,-265.80201731,0.00031118,2]
[310754115,1704709841441,-2483.08597309,0.00031118,2]
[310754116,1704709841452,-154.86062544,0.00031118,4]
[310754117,1704709841461,-193.28169905,0.00031118,4]
[310754118,1704709841471,-298.18220539,0.00031118,4]
[310754119,1704709841480,-2870.14969708,0.00031118,4]
[310754120,1704709841490,-297.29337072,0.00031118,4]
[310754121,1704709841499,-454.89181024,0.00031118,2]
[310754122,1704709841509,-104863.62388371,0.0003112,14]
[310754125,1704709841882,-1923.02127082,0.0003112,14]
[310754126,1704709841895,-10574.51902331,0.0003112,14]
[310754127,1704709841904,-300.0,0.0003112,4]
[310754128,1704709841915,-2077.63950727,0.0003112,4]
[310754129,1704709841924,-282.23116997,0.0003112,3]
[310754130,1704709841933,-151.0,0.0003112,2]
[310754131,1704709841942,-4337.25904189,0.0003112,2]
[310754132,1704709841955,-542.37895057,0.00033,7]
[310754133,1704709841965,-177.0,0.00033,2]
[310754134,1704709841974,-1000.0,0.00034,7]
[310754135,1704709841983,-176.330259,0.00034034,2]
[310754136,1704709841992,-4000.0,0.00034521,2]
[310754137,1704709842003,-254.05524745,0.00034701,5]
[310754138,1704709842013,-253.86226859,0.00035,2]
[310754139,1704709842026,-521.52489468,0.00035,2]
[310754140,1704709842036,-245.38183383,0.00035,4]
[310754141,1704709842047,-157.78984349,0.00035,6]
[310754142,1704709842057,-414.94974673,0.00035,4]
[310754143,1704709842066,-657.434484,0.00035,2]
[310754144,1704709842076,-4213.3530685,0.000353,7]
[310754145,1704709842086,-1514.168616,0.000353,2]
[310754146,1704709842096,-500.0,0.00035338,2]
[310754147,1704709842106,-1000.0,0.00035349,2]
[310754148,1704709842115,-240.3427273,0.000354,30]
[310754149,1704709842126,-1000.0,0.00035409,2]
[310754150,1704709842135,-5000.0,0.00035447,7]
[310754151,1704709842145,-389.0,0.00035452,2]
[310754152,1704709842154,-166.33333333,0.00035453,14]
[310754153,1704709842163,-294.97782064,0.00035499,4]
[310754154,1704709842173,-153.0,0.00035561,2]
[310754155,1704709842184,-320.0046877,0.00035561,2]
[310754156,1704709842196,-153.0,0.00035561,2]
[310754157,1704709842205,-153.0,0.00035561,2]
[310754158,1704709842214,-153.0,0.00035561,2]
[310754159,1704709842223,-153.0,0.00035561,2]
[310754160,1704709842233,-153.0,0.00035561,2]
[310754161,1704709842243,-153.0,0.00035561,2]
[310754162,1704709842254,-153.0,0.00035561,2]
[310754163,1704709842263,-153.0,0.00035561,2]
[310754164,1704709842273,-153.0,0.00035561,2]
[310754165,1704709842283,-153.0,0.00035561,2]
[310754166,1704709842292,-153.0,0.00035561,2]
[310754167,1704709842302,-153.0,0.00035561,2]
[310754168,1704709842312,-976.16286123,0.00035561,2]
[310754169,1704709842321,-2028.3271136,0.00035612,4]
[310754170,1704709842330,-264.66072966,0.00035612,4]
[310754171,1704709842339,-2098.68320007,0.00035612,4]
[310754172,1704709842349,-1171.77383703,0.00035612,4]
[310754173,1704709842357,-285.41844897,0.00035613,4]
[310754177,1704709845646,-312.2633,0.00020544,3]
[310754178,1704709845657,-326.5867,0.00020544,3]
[310754179,1704709845666,-531.84424867,0.00035613,4]
[310754180,1704709846094,-364.91779616,0.00035613,4]
[310754181,1704709846107,-8687.98222307,0.00035613,14]
[310754182,1704709846121,-3767.71865162,0.00035613,14]
[310754183,1704709846135,-628.0854534,0.00035613,14]
[310754184,1704709846150,-268.24199987,0.00035613,14]
[310754193,1704709846643,-17405.20647851,0.00035613,14]
[310754195,1704709874127,1498.49659858,0.00019498,2]
[310754197,1704710167648,364.63224047,0.00027,7]
[310754207,1704710996901,-230.38355805,0.00024424,2]
[310754208,1704710996928,-326.5926711,0.00024424,2]
[310754209,1704710996952,-2029.06228573,0.00024424,2]
[310754210,1704710996978,-532.38,0.00024425,3]
[310754211,1704710997004,-1881.58148512,0.00024432,2]
[310754263,1704711031869,-245.94314602,0.00024423,2]
[310754264,1704711031878,-154.84515485,0.00024423,2]
[310754266,1704711031887,-2507.77928787,0.00024424,2]
[310754268,1704711031896,-642.65877806,0.00024424,2]
[310754270,1704711031906,-256.74,0.00024425,3]
[310754271,1704711031915,-410.58534494,0.00024432,2]
[310754273,1704711031926,-271.84681724,0.00024432,2]
[310754274,1704711031935,-154.84515485,0.00024432,2]
[310754275,1704711031944,-2029.06228573,0.00024433,2]
[310754276,1704711031954,-230.38355805,0.00024434,2]
[310754277,1704711031963,-326.03200794,0.00024434,2]
[310754278,1704711031972,-278.80232783,0.00024435,2]
[310754279,1704711031983,-34341.72011137,0.00024435,2]
[310754306,1704711040981,-1586.54763631,0.00024422,2]
[310754308,1704711040992,-520.7402291,0.00024434,2]
[310754310,1704711041002,-43707.40805768,0.00024435,2]
[310754312,1704711041012,-24900.0,0.00024436,2]
[310754314,1704711041021,-172.97369266,0.00024485,2]
[310754316,1704711041031,-159.801209,0.00024595,2]
[310754317,1704711041041,-159.801209,0.00024595,2]
[310754319,1704711041054,-159.801209,0.00024595,2]
[310754321,1704711041065,-159.801209,0.00024595,2]
[310754322,1704711041075,-159.801209,0.00024595,2]
[310754323,1704711041084,-213.355919,0.00024596,2]
[310754324,1704711041094,-166.666666,0.00024652,2]
[310754325,1704711041103,-508.6242048,0.00026152,2]
[310754326,1704711041113,-162.60202211,0.00026152,2]
[310754327,1704711041123,-181.0143294,0.00026153,2]
[310754328,1704711041132,-263.7943585,0.00026154,2]
[310754329,1704711041142,-376.50262285,0.00026154,2]
[310754330,1704711041152,-3735.0637491,0.00026155,2]
[310754331,1704711041162,-259.805182,0.00026745,2]
[310754332,1704711041171,-223.92274302,0.00027572,2]
[310754333,1704711041180,-11449.37644056,0.00027575,2]
[310754451,1704711368459,24900.0,0.00019993,2]
[310754452,1704711385095,200.0,0.0002308,7]
[310754453,1704711385862,280.0,0.00025388,7]
[310754454,1704711866586,219.9475086,0.00019798,2]
[310754455,1704711938890,24900.0,0.00019709,2]
[310754456,1704711997261,155.08229637,0.0002,2]
[310754457,1704712019705,211.29574429,0.00019709,2]
[310754463,1704712146135,-9481.19047631,0.00020577,2]
[310754511,1704712232033,-285.61680411,0.00020559,2]
[310754512,1704712232043,-230.38355805,0.00020559,2]
[310754513,1704712232052,-2507.77928787,0.00020559,2]
[310754514,1704712232063,-264.75182318,0.0002056,2]
[310754515,1704712232072,-198.74018768,0.0002056,2]
[310754516,1704712232082,-99.96412869,0.0002056,2]
[310754518,1704712232095,-54.88102616,0.0002056,2]
[310754520,1704712232105,-271.84681724,0.00020561,2]
[310754521,1704712232115,-144.2640056,0.00020561,2]
[310754522,1704712232129,-110.94892594,0.00020561,2]
[310754523,1704712232139,-2992.99968739,0.00020561,2]
[310754525,1704712232149,-7552.78653652,0.00020561,2]
[310754527,1704712232159,-553.89631554,0.00020562,2]
[310754529,1704712232169,-1586.54763631,0.00020562,2]
[310754531,1704712232179,-10493.06199848,0.00020562,2]
[310754533,1704712232188,-1290.44709012,0.00020563,2]
[310754535,1704712232198,-260.82241338,0.00020563,2]
[310754537,1704712232208,-294.29289612,0.00020563,2]
[310754539,1704712232216,-1577.96610455,0.00020563,2]
[310754540,1704712232225,-193.32,0.00020564,3]
[310754541,1704712232234,-642.65877806,0.00020571,2]
[310754542,1704712232243,-245.72874804,0.00020571,2]
[310754543,1704712232252,-19652.00978735,0.00020571,2]
[310754544,1704712232261,-245.94314602,0.00020572,2]
[310754545,1704712232270,-1194.60979452,0.00020572,2]
[310754546,1704712232279,-901.30981836,0.00020572,2]
[310754547,1704712232289,-154.84515485,0.00020572,2]
[310754548,1704712232298,-78327.93049688,0.00020574,2]
[310754549,1704712232307,-2099.48989371,0.00020588,2]
[310754550,1704712232316,-187.67060335,0.00020599,2]
[310754551,1704712232324,-193.46228085,0.00020712,2]
[310754552,1704712232333,-785.86849027,0.00020803,2]
[310754553,1704712232343,-3935.83596684,0.00020816,2]
[310754554,1704712232352,-309.65937468,0.00020942,2]
[310754555,1704712232361,-5572.1886899,0.00021,2]
[310754556,1704712232370,-5619.07192051,0.00021,2]
[310754557,1704712232379,-166.666666,0.00021918,2]
[310754558,1704712232388,-2694.33889773,0.00024054,2]
[310754559,1704712232398,-2292.16683006,0.00025023,2]
[310754560,1704712232409,-174.489938,0.00025025,2]
[310754561,1704712232421,-525.66386254,0.00026,2]
[310754562,1704712232431,-267.42846283,0.00027572,2]
[310754563,1704712232442,-1212.41206683,0.00027573,2]
[310754564,1704712232455,-570.75431427,0.00027574,2]
[310754565,1704712232467,-154.86063161,0.00027574,2]
[310754566,1704712232479,-12274.35037364,0.00027575,2]
[310754567,1704712232490,-1178.8701405,0.00027575,2]
[310754568,1704712232500,-235.7740281,0.00027575,2]
[310754569,1704712232509,-2580.47921228,0.00027575,2]
[310754570,1704712232647,-7567.6274165,0.00027575,2]
[310754571,1704712232657,-7690.21109527,0.00027575,2]
[310754572,1704712232666,-175.8706406,0.00027921,2]
[310754573,1704712232677,-304.86467547,0.00028,2]
[310754574,1704712232688,-2694.33889773,0.00029054,2]
[310754575,1704712232701,-753.60251468,0.00029941,2]
[310754576,1704712232712,-4999.98,0.0003,2]
[310754577,1704712232726,-832.83610196,0.0003,2]
[310754586,1704712238910,-368.64,0.00020564,3]
[310754588,1704712238920,-3457.30680216,0.0003,2]
[310754590,1704712238932,-709.85709588,0.0003,2]
[310754592,1704712238942,-5080.59,0.0003,2]
[310754594,1704712238952,-524.65191094,0.0003,4]
[310754596,1704712238961,-282.45630741,0.0003,3]
[310754598,1704712238971,-700.93663677,0.0003026,4]
[310754600,1704712238981,-352.81395222,0.00030261,4]
[310754602,1704712238990,-316.63391566,0.00030262,4]
[310754603,1704712238999,-215.21805287,0.00030262,2]
[310754606,1704712239011,-28.07610552,0.00030262,2]
[310754607,1704712239020,-155.11431733,0.00030262,4]
[310754608,1704712239029,-3753.51798188,0.00030263,2]
[310754629,1704712244110,-2509.61171508,0.00030262,4]
[310754630,1704712244123,-102729.45037286,0.00030262,4]
[310754631,1704712244133,-22315.4396649,0.00030263,2]
[310754632,1704712244142,-9431.63624703,0.00031,4]
[310754633,1704712244151,-307.2,0.00031237,3]
[310754634,1704712244161,-50000.0,0.00031247,7]
[310754635,1704712244170,-284.34174652,0.00031275,4]
[310754637,1704712244179,-155.15720642,0.00031275,4]
[310754639,1704712244188,-268.14386702,0.00031275,4]
[310754640,1704712244197,-155.15032044,0.00031275,4]
[310754641,1704712244207,-155.42000795,0.00031275,4]
[310754642,1704712244216,-4707.01098899,0.00031275,3]
[310754643,1704712244226,-333.23644988,0.00031275,4]
[310754644,1704712244235,-3000.0,0.00031275,2]
[310754645,1704712244245,-362.70570295,0.00031275,4]
[310754646,1704712244254,-289.70984888,0.00031275,2]
[310754647,1704712244264,-156.08604098,0.00031275,4]
[310754648,1704712244273,-155.82283665,0.00031275,4]
[310754649,1704712244283,-155.63566622,0.00031275,4]
[310754651,1704712244293,-192.00578741,0.00031275,4]
[310754653,1704712244302,-165.57089835,0.00031275,4]
[310754655,1704712244312,-279.82780709,0.00031275,4]
[310754657,1704712244321,-228.02594231,0.00031275,4]
[310754659,1704712244330,-155.78549838,0.00031275,4]
[310754661,1704712244340,-339.85578053,0.00031276,4]
[310754663,1704712244350,-301.06112899,0.00031277,4]
[310754665,1704712244359,-3652.44,0.00031963,2]
[310754667,1704712244368,-802.93,0.00031975,2]
[310754669,1704712244376,-542.37895057,0.00033,7]
[310754671,1704712244385,-213.0,0.00033,2]
[310754673,1704712244394,-309.73672456,0.00033077,2]
[310754674,1704712244403,-3052.6262699,0.00033078,4]
[310754676,1704712244413,-326.45250531,0.00033078,4]
[310754679,1704712244424,-154.87609912,0.0003308,4]